fUSD/lending_fUSD_20250623
["ID","MTS","AMOUNT","RATE_DAILY","PERIOD"]
[367201769,1750698697548,-490.0,0.00024365,2]
[367201770,1750698697559,-490.0,0.00024365,2]
[367201771,1750698697569,-845.85,0.00024365,2]
[367201772,1750698697579,-500.92999492,0.00024365,2]
[367201773,1750698697589,-822.97,0.00024365,2]
[367201774,1750698697601,-490.0,0.00024365,2]
[367201775,1750698697611,-526.85,0.00024365,2]
[367201776,1750698697621,-1459.19,0.00024365,2]
[367201777,1750698697631,-490.0,0.00024365,2]
[367201778,1750698697642,-1910.2,0.00024365,2]
[367201779,1750698697652,-975.14,0.00024365,2]
[367201780,1750698697662,-1090.36,0.00024365,2]
[367201781,1750698697672,-490.0,0.00024365,2]
[367201782,1750698697683,-1700.88,0.00024365,2]
[367201783,1750698697693,-490.0,0.00024365,2]
[367201784,1750698697703,-661.71,0.00024365,2]
[367201785,1750698697713,-2474.52,0.00024365,2]
[367201786,1750698697723,-1007.33,0.00024365,2]
[367201787,1750698697733,-621.4,0.00024365,2]
[367201788,1750698697744,-490.0,0.00024365,2]
[367201789,1750698697754,-1520.6,0.00024365,2]
[367201790,1750698697765,-604.07,0.00024365,2]
[367201791,1750698697775,-490.0,0.00024365,2]
[367201792,1750698697785,-490.0,0.00024365,2]
[367201793,1750698697795,-515.83,0.00024365,2]
[367201794,1750698697805,-636.82,0.00024365,2]
[367201795,1750698697816,-1671.93,0.00024365,2]
[367201796,1750698697827,-1091.97,0.00024365,2]
[367201797,1750698697837,-490.0,0.00024365,2]
[367201798,1750698697847,-490.0,0.00024365,2]
[367201799,1750698697859,-1337.29,0.00024365,2]
[367201800,1750698697869,-1057.36,0.00024365,2]
[367201801,1750698697879,-897.65,0.00024365,2]
[367201802,1750698697889,-490.0,0.00024365,2]
[367201803,1750698697899,-1237.82,0.00024365,2]
[367201804,1750698697909,-513.51,0.00024365,2]
[367201805,1750698697919,-628.5,0.00024365,2]
[367201806,1750698697929,-1452.58,0.00024365,2]
[367201807,1750698697939,-2187.25,0.00024365,2]
[367201808,1750698697949,-554.23,0.00024365,2]
[367201809,1750698697960,-541.28,0.00024365,2]
[367201810,1750698697970,-885.64,0.00024365,2]
[367201811,1750698697980,-542.88,0.00024365,2]
[367201812,1750698697989,-838.0,0.00024365,2]
[367201813,1750698697999,-1607.74,0.00024365,2]
[367201814,1750698698009,-2113.25,0.00024365,2]
[367201815,1750698698019,-1894.29,0.00024365,2]
[367201816,1750698698029,-490.0,0.00024365,2]
[367201817,1750698698039,-490.0,0.00024365,2]
[367201818,1750698698048,-1031.09,0.00024365,2]
[367201819,1750698698058,-490.0,0.00024365,2]
[367201820,1750698698068,-490.0,0.00024365,2]
[367201821,1750698698077,-490.0,0.00024365,2]
[367201822,1750698698088,-360.38,0.00024365,2]
[367201823,1750698698102,-788.91,0.00024365,2]
[367201824,1750698698112,-490.0,0.00024365,2]
[367201825,1750698698122,-490.0,0.00024365,2]
[367201826,1750698698132,-2071.88,0.00024365,2]
[367201827,1750698698142,-1258.85,0.00024365,2]
[367201828,1750698698152,-788.65,0.00024365,2]
[367201829,1750698698161,-490.0,0.00024365,2]
[367201830,1750698698171,-490.0,0.00024365,2]
[367201831,1750698698181,-1574.29,0.00024365,2]
[367201832,1750698698191,-1152.75,0.00024365,2]
[367201833,1750698698201,-1238.42,0.00024365,2]
[367201834,1750698698210,-1425.09,0.00024365,2]
[367201835,1750698698220,-490.0,0.00024365,2]
[367201836,1750698698230,-1519.63,0.00024365,2]
[367201837,1750698698240,-666.89,0.00024365,2]
[367201838,1750698698250,-490.0,0.00024365,2]
[367201839,1750698698259,-585.27,0.00024365,2]
[367201840,1750698698269,-490.0,0.00024365,2]
[367201841,1750698698279,-1335.79,0.00024365,2]
[367201842,1750698698288,-490.0,0.00024365,2]
[367201843,1750698698299,-490.0,0.00024365,2]
[367201844,1750698698309,-1907.04,0.00024365,2]
[367201845,1750698698318,-490.0,0.00024365,2]
[367201846,1750698698328,-1660.38,0.00024365,2]
[367201847,1750698698339,-804.67,0.00024365,2]
[367201848,1750698698350,-490.0,0.00024365,2]
[367201849,1750698698360,-1654.5,0.00024365,2]
[367201850,1750698698370,-1140.14,0.00024365,2]
[367201851,1750698698380,-490.0,0.00024365,2]
[367201852,1750698698390,-490.0,0.00024365,2]
[367201853,1750698698400,-490.0,0.00024365,2]
[367201854,1750698698410,-1832.21,0.00024365,2]
[367201855,1750698698421,-490.0,0.00024365,2]
[367201856,1750698698431,-858.09,0.00024365,2]
[367201857,1750698698441,-660.75,0.00024365,2]
[367201858,1750698698452,-490.0,0.00024365,2]
[367201859,1750698698462,-490.0,0.00024365,2]
[367201860,1750698698726,-1520.18,0.00024365,2]
[367201861,1750698698755,-490.0,0.00024365,2]
[367201862,1750698698765,-1338.13,0.00024365,2]
[367201863,1750698698775,-1071.6,0.00024365,2]
[367201864,1750698698785,-500.0,0.00024365,2]
[367201865,1750698698794,-490.0,0.00024365,2]
[367201866,1750698698804,-1193.49,0.00024365,2]
[367201867,1750698698814,-490.0,0.00024365,2]
[367201868,1750698698825,-765.84,0.00024365,2]
[367201869,1750698698835,-490.0,0.00024365,2]
[367201870,1750698698845,-490.0,0.00024365,2]
[367201871,1750698698857,-490.0,0.00024365,2]
[367201872,1750698698867,-975.19,0.00024365,2]
[367201873,1750698698877,-1121.14,0.00024365,2]
[367201874,1750698698886,-490.0,0.00024365,2]
[367201875,1750698698896,-721.36,0.00024365,2]
[367201876,1750698698905,-490.0,0.00024365,2]
[367201877,1750698698915,-1496.89,0.00024365,2]
[367201878,1750698698924,-490.0,0.00024365,2]
[367201879,1750698698935,-1850.56,0.00024365,2]
[367201880,1750698698944,-851.87,0.00024365,2]
[367201881,1750698698954,-775.66,0.00024365,2]
[367201882,1750698698964,-508.01,0.00024365,2]
[367201883,1750698698973,-490.0,0.00024365,2]
[367201884,1750698698983,-696.43,0.00024365,2]
[367201885,1750698698992,-490.0,0.00024365,2]
[367201886,1750698699002,-503.51,0.00024365,2]
[367201887,1750698699011,-759.75,0.00024365,2]
[367201888,1750698699021,-719.21,0.00024365,2]
[367201889,1750698699031,-550.96,0.00024365,2]
[367201890,1750698699040,-1736.88,0.00024365,2]
[367201891,1750698699050,-1417.97,0.00024365,2]
[367201892,1750698699059,-490.0,0.00024365,2]
[367201893,1750698699069,-490.0,0.00024366,2]
[367201894,1750698699079,-1272.27,0.00024366,2]
[367201895,1750698699091,-490.0,0.00024366,2]
[367201896,1750698699101,-499.94960603,0.00024366,2]
[367201897,1750698699111,-490.0,0.00024366,2]
[367201898,1750698699121,-688.42,0.00024366,2]
[367201899,1750698699131,-490.0,0.00024366,2]
[367201900,1750698699140,-490.0,0.00024366,2]
[367201901,1750698699149,-619.84,0.00024366,2]
[367201902,1750698699160,-490.0,0.00024366,2]
[367201903,1750698699171,-815.99,0.00024366,2]
[367201904,1750698699180,-490.0,0.00024366,2]
[367201905,1750698699191,-490.0,0.00024366,2]
[367201906,1750698699200,-490.0,0.00024366,2]
[367201907,1750698699210,-491.68,0.00024366,2]
[367201908,1750698699220,-490.0,0.00024366,2]
[367201909,1750698699230,-490.0,0.00024366,2]
[367201910,1750698699240,-490.0,0.00024366,2]
[367201911,1750698699250,-490.0,0.00024366,2]
[367201912,1750698699260,-982.4,0.00024366,2]
[367201913,1750698699271,-683.19,0.00024366,2]
[367201914,1750698699281,-1734.24,0.00024366,2]
[367201915,1750698699291,-2397.5,0.00024366,2]
[367201916,1750698699300,-665.68,0.00024366,2]
[367201917,1750698699310,-1068.53,0.00024366,2]
[367201918,1750698699320,-963.54,0.00024366,2]
[367201919,1750698699329,-490.0,0.00024366,2]
[367201920,1750698699340,-1365.65,0.00024366,2]
[367201921,1750698699351,-1251.07,0.00024366,2]
[367201922,1750698699362,-1403.96,0.00024366,2]
[367201923,1750698699372,-851.44,0.00024366,2]
[367201924,1750698699383,-537.5,0.00024366,2]
[367201925,1750698699393,-1043.04037009,0.00024368,2]
[367201926,1750698699403,-500.0,0.00024368,2]
[367201927,1750698699413,-1500.87376751,0.00024368,2]
[367201928,1750698699423,-1000.0,0.00024368,2]
[367201929,1750698699433,-1500.0,0.00024368,2]
[367201930,1750698699443,-1500.0,0.00024368,2]
[367201931,1750698699453,-1502.73633782,0.00024368,2]
[367201932,1750698699463,-1500.0,0.00024368,2]
[367201933,1750698699474,-549.0,0.0002437,2]
[367201934,1750698699484,-150.0,0.00024372,2]
[367201935,1750698699493,-150.0,0.00024377,2]
[367201936,1750698699504,-150.0,0.00024382,2]
[367201937,1750698699513,-157.66297745,0.00024384,30]
[367201938,1750698699524,-150.0,0.00024389,2]
[367201939,1750698699534,-150.0,0.00024392,2]
[367201940,1750698699543,-168.0,0.00024397,2]
[367201941,1750698699553,-549.0,0.00024398,2]
[367201942,1750698699563,-7144.72,0.000244,2]
[367201943,1750698699573,-150.0,0.000244,2]
[367201944,1750698699584,-753.0,0.000244,2]
[367201945,1750698699594,-769.0,0.000244,2]
[367201946,1750698699604,-549.0,0.00024425,2]
[367201947,1750698699614,-150.0,0.00024429,2]
[367201948,1750698699624,-549.0,0.00024453,2]
[367201949,1750698699634,-168.0,0.00024454,2]
[367201950,1750698699643,-150.0,0.00024457,2]
[367201951,1750698699653,-150.0,0.0002446,2]
[367201952,1750698699663,-155.469,0.00024466,2]
[367201953,1750698699673,-947.0,0.00024466,2]
[367201954,1750698699682,-3336.0,0.00024466,2]
[367201955,1750698699692,-871.079,0.00024466,2]
[367201956,1750698699702,-638.0,0.00024466,2]
[367201957,1750698699711,-687.735,0.00024466,2]
[367201958,1750698699721,-559.0,0.00024466,2]
[367201959,1750698699731,-1279.0,0.00024466,2]
[367201960,1750698699740,-929.0,0.00024466,2]
[367201961,1750698699750,-2005.0,0.00024466,2]
[367201962,1750698699759,-1677.0,0.00024466,2]
[367201963,1750698699769,-150.0,0.0002447,2]
[367201964,1750698699779,-549.0,0.0002448,2]
[367201965,1750698699789,-386.50248258,0.00024488,2]
[367201966,1750698699798,-600.0,0.00024493,2]
[367201967,1750698699809,-600.0,0.00024493,2]
[367201968,1750698699819,-600.0,0.00024493,2]
[367201969,1750698699830,-1201.86082279,0.00024499,10]
[367201970,1750698699841,-1581.372574,0.000245,2]
[367201971,1750698699850,-2000.0,0.000245,2]
[367201972,1750698699861,-2000.0,0.000245,2]
[367201973,1750698699871,-165.7,0.000245,11]
[367201974,1750698699880,-150.0,0.00024506,2]
[367201975,1750698699890,-549.0,0.00024507,2]
[367201976,1750698699900,-2000.0,0.0002451,2]
[367201977,1750698699909,-2000.0,0.0002451,2]
[367201978,1750698699919,-150.0,0.0002451,2]
[367201979,1750698699928,-150.0,0.00024517,2]
[367201980,1750698699938,-3962.000436,0.0002452,2]
[367201981,1750698699947,-2000.0,0.0002452,2]
[367201982,1750698699958,-500.0,0.0002452,2]
[367201983,1750698699967,-500.0,0.0002452,2]
[367201984,1750698699979,-500.0,0.0002452,2]
[367201985,1750698699990,-500.0,0.0002452,2]
[367201986,1750698700000,-500.0,0.0002452,2]
[367201987,1750698700011,-500.0,0.0002452,2]
[367201988,1750698700021,-500.0,0.0002452,2]
[367201989,1750698700031,-500.0,0.0002452,2]
[367201990,1750698700041,-500.0,0.0002452,2]
[367201991,1750698700050,-500.0,0.0002452,2]
[367201992,1750698700060,-500.0,0.0002452,2]
[367201993,1750698700070,-500.0,0.0002452,2]
[367201994,1750698700080,-500.0,0.0002452,2]
[367201995,1750698700090,-500.0,0.0002452,2]
[367201996,1750698700105,-500.0,0.0002452,2]
[367201997,1750698700114,-500.0,0.0002452,2]
[367201998,1750698700124,-500.0,0.0002452,2]
[367201999,1750698700133,-500.0,0.0002452,2]
[367202000,1750698700143,-500.0,0.0002452,2]
[367202001,1750698700153,-500.0,0.0002452,2]
[367202002,1750698700163,-500.0,0.0002452,2]
[367202003,1750698700173,-500.0,0.0002452,2]
[367202004,1750698700183,-784.0,0.0002452,2]
[367202005,1750698700193,-500.0,0.0002452,2]
[367202006,1750698700202,-500.0,0.0002452,2]
[367202007,1750698700212,-766.0,0.0002452,2]
[367202008,1750698700221,-500.0,0.0002452,2]
[367202009,1750698700231,-500.0,0.0002452,2]
[367202010,1750698700241,-500.0,0.0002452,2]
[367202011,1750698700251,-500.0,0.0002452,2]
[367202012,1750698700261,-500.0,0.0002452,2]
[367202013,1750698700271,-500.0,0.0002452,2]
[367202014,1750698700281,-500.0,0.0002452,2]
[367202015,1750698700291,-500.0,0.0002452,2]
[367202016,1750698700302,-500.0,0.0002452,2]
[367202017,1750698700312,-500.0,0.0002452,2]
[367202018,1750698700321,-500.0,0.0002452,2]
[367202019,1750698700331,-500.0,0.0002452,2]
[367202020,1750698700341,-500.0,0.0002452,2]
[367202021,1750698700351,-500.0,0.0002452,2]
[367202022,1750698700361,-500.0,0.0002452,2]
[367202023,1750698700371,-500.0,0.0002452,2]
[367202024,1750698700380,-500.0,0.0002452,2]
[367202025,1750698700390,-500.0,0.0002452,2]
[367202026,1750698700400,-500.0,0.0002452,2]
[367202027,1750698700409,-500.0,0.0002452,2]
[367202028,1750698700418,-500.0,0.0002452,2]
[367202029,1750698700428,-500.0,0.0002452,2]
[367202030,1750698700438,-521.0,0.0002452,2]
[367202031,1750698700447,-557.0,0.0002452,2]
[367202032,1750698700456,-500.0,0.0002452,2]
[367202033,1750698700466,-500.0,0.0002452,2]
[367202034,1750698700475,-500.0,0.0002452,2]
[367202035,1750698700485,-864.0,0.0002452,2]
[367202036,1750698700494,-500.0,0.0002452,2]
[367202037,1750698700504,-500.0,0.0002452,2]
[367202038,1750698700513,-157.66297745,0.00024521,30]
[367202039,1750698700523,-2227.40045,0.0002453,2]
[367202040,1750698700533,-549.0,0.00024535,2]
[367202041,1750698700543,-1201.86082278,0.00024548,10]
[367202042,1750698700553,-529.02206399,0.00024555,11]
[367202043,1750698700564,-150.0,0.00024556,2]
[367202044,1750698700574,-571.06852104,0.00024562,2]
[367202045,1750698700584,-203.0,0.00024587,2]
[367202046,1750698700593,-150.0,0.00024594,2]
[367202047,1750698700604,-285.32504675,0.00024598,2]
[367202048,1750698700614,-183.43798966,0.00024599,2]
[367202049,1750698700624,-176.69,0.000246,5]
[367202050,1750698700633,-1010.99655861,0.00024616,2]
[367202051,1750698700642,-1498.75720867,0.00024616,2]
[367202052,1750698700652,-2000.0,0.00024616,2]
[367202053,1750698700662,-2000.0,0.00024616,2]
[367202054,1750698700672,-150.79669366,0.0002463,2]
[367202055,1750698700682,-157.66297745,0.0002463,30]
[367202056,1750698700691,-728.95,0.00024632,2]
[367202057,1750698700700,-490.0,0.00024632,2]
[367202058,1750698700710,-1326.54,0.00024632,2]
[367202059,1750698700720,-558.39,0.00024632,2]
[367202060,1750698700731,-1102.83,0.00024632,2]
[367202061,1750698700741,-300.0,0.00024633,2]
[367202062,1750698700751,-490.0,0.00024636,2]
[367202063,1750698700761,-490.0,0.00024636,2]
[367202064,1750698700771,-519.65,0.00024636,2]
[367202065,1750698700780,-490.0,0.00024637,2]
[367202066,1750698700790,-490.0,0.00024637,2]
[367202067,1750698700799,-490.0,0.00024637,2]
[367202068,1750698700809,-490.0,0.00024637,2]
[367202069,1750698700819,-667.69,0.00024637,2]
[367202070,1750698700828,-490.0,0.00024637,2]
[367202071,1750698700837,-646.96,0.00024637,2]
[367202072,1750698700847,-587.11,0.00024637,2]
[367202073,1750698700858,-563.63,0.00024637,2]
[367202074,1750698700868,-639.66,0.00024637,2]
[367202075,1750698700879,-727.63,0.00024637,2]
[367202076,1750698700889,-688.37,0.00024637,2]
[367202077,1750698700898,-679.62,0.00024637,2]
[367202078,1750698700908,-1392.01,0.00024637,2]
[367202079,1750698700918,-1071.03,0.00024637,2]
[367202080,1750698700928,-655.34,0.00024637,2]
[367202081,1750698700937,-490.0,0.00024637,2]
[367202082,1750698700946,-490.0,0.00024637,2]
[367202083,1750698700956,-406.82,0.00024637,2]
[367202084,1750698700965,-490.0,0.00024637,2]
[367202085,1750698700975,-490.0,0.00024637,2]
[367202086,1750698700985,-608.99,0.00024637,2]
[367202087,1750698700994,-490.0,0.00024637,2]
[367202088,1750698701005,-1379.66,0.00024637,2]
[367202089,1750698701016,-669.98,0.00024637,2]
[367202090,1750698701026,-611.24,0.00024637,2]
[367202091,1750698701035,-651.34,0.00024637,2]
[367202092,1750698701045,-1147.78,0.00024637,2]
[367202093,1750698701136,-490.0,0.00024637,2]
[367202094,1750698701147,-490.0,0.00024637,2]
[367202095,1750698701157,-848.13,0.00024637,2]
[367202096,1750698701166,-490.0,0.00024637,2]
[367202097,1750698701177,-490.11,0.00024637,2]
[367202098,1750698701187,-491.56,0.00024637,2]
[367202099,1750698701196,-535.75,0.00024637,2]
[367202100,1750698701205,-1005.59,0.00024637,2]
[367202101,1750698701215,-710.24,0.00024637,2]
[367202102,1750698701224,-490.0,0.00024637,2]
[367202103,1750698701234,-1093.69,0.00024637,2]
[367202104,1750698701243,-490.0,0.00024637,2]
[367202105,1750698701252,-495.46,0.00024637,2]
[367202106,1750698701262,-1026.37,0.00024637,2]
[367202107,1750698701271,-1042.94,0.00024637,2]
[367202108,1750698701281,-490.0,0.00024637,2]
[367202109,1750698701290,-680.85,0.00024637,2]
[367202110,1750698701299,-999.16,0.00024637,2]
[367202111,1750698701309,-667.22,0.00024637,2]
[367202112,1750698701318,-693.98,0.00024637,2]
[367202113,1750698701327,-1158.24,0.00024637,2]
[367202114,1750698701337,-490.0,0.00024637,2]
[367202115,1750698701346,-1114.67,0.00024637,2]
[367202116,1750698701357,-796.17,0.00024637,2]
[367202117,1750698701367,-908.82,0.00024637,2]
[367202118,1750698701376,-588.97,0.00024637,2]
[367202119,1750698701385,-917.59,0.00024637,2]
[367202120,1750698701395,-821.03,0.00024637,2]
[367202121,1750698701404,-1290.1,0.00024637,2]
[367202122,1750698701414,-490.0,0.00024637,2]
[367202123,1750698701424,-490.0,0.00024637,2]
[367202124,1750698701433,-795.86,0.00024637,2]
[367202125,1750698701442,-577.68,0.00024637,2]
[367202126,1750698701451,-1286.37,0.00024637,2]
[367202127,1750698701461,-891.33,0.00024637,2]
[367202128,1750698701470,-490.0,0.00024637,2]
[367202129,1750698701479,-547.12,0.00024637,2]
[367202130,1750698701489,-915.13,0.00024637,2]
[367202131,1750698701498,-607.15,0.00024637,2]
[367202132,1750698701507,-490.0,0.00024637,2]
[367202133,1750698701517,-490.0,0.00024637,2]
[367202134,1750698701526,-519.94,0.00024637,2]
[367202135,1750698701535,-827.87,0.00024637,2]
[367202136,1750698701544,-490.0,0.00024637,2]
[367202137,1750698701554,-490.0,0.00024637,2]
[367202138,1750698701563,-490.0,0.00024637,2]
[367202139,1750698701572,-528.13,0.00024637,2]
[367202140,1750698701582,-735.18,0.00024637,2]
[367202141,1750698701592,-490.0,0.00024637,2]
[367202142,1750698701601,-503.9,0.00024637,2]
[367202143,1750698701612,-868.27,0.00024637,2]
[367202144,1750698701622,-577.29,0.00024637,2]
[367202145,1750698701632,-490.0,0.00024637,2]
[367202146,1750698701641,-490.0,0.00024637,2]
[367202147,1750698701651,-490.0,0.00024637,2]
[367202148,1750698701660,-532.41,0.00024637,2]
[367202149,1750698701670,-713.81,0.00024637,2]
[367202150,1750698701680,-490.0,0.00024637,2]
[367202151,1750698701689,-639.62,0.00024637,2]
[367202152,1750698701698,-490.0,0.00024637,2]
[367202153,1750698701708,-490.0,0.00024637,2]
[367202154,1750698701717,-503.62,0.00024637,2]
[367202155,1750698701726,-1449.54,0.00024637,2]
[367202156,1750698701738,-490.0,0.00024637,2]
[367202157,1750698701748,-2103.74,0.00024637,2]
[367202158,1750698701757,-1502.01,0.00024637,2]
[367202159,1750698701766,-490.0,0.00024637,2]
[367202160,1750698701776,-490.0,0.00024637,2]
[367202161,1750698701786,-490.0,0.00024637,2]
[367202162,1750698701796,-1281.35,0.00024637,2]
[367202163,1750698701805,-490.0,0.00024637,2]
[367202164,1750698701815,-490.0,0.00024637,2]
[367202165,1750698701824,-1013.96,0.00024637,2]
[367202166,1750698701835,-978.16,0.00024637,2]
[367202167,1750698701844,-706.03,0.00024637,2]
[367202168,1750698701856,-326.60905831,0.00024637,2]
[367202169,1750698701866,-490.0,0.00024637,2]
[367202170,1750698701875,-490.0,0.00024637,2]
[367202171,1750698701885,-490.0,0.00024637,2]
[367202172,1750698701894,-168.33494432,0.00024637,2]
[367202173,1750698701907,-851.97,0.00024637,2]
[367202174,1750698701916,-490.0,0.00024637,2]
[367202175,1750698701925,-490.0,0.00024637,2]
[367202176,1750698701934,-968.94,0.00024637,2]
[367202177,1750698701943,-490.0,0.00024637,2]
[367202178,1750698701953,-1305.56,0.00024637,2]
[367202179,1750698701962,-605.32,0.00024637,2]
[367202180,1750698701971,-1523.12,0.00024637,2]
[367202181,1750698701981,-496.3,0.00024637,2]
[367202182,1750698701990,-596.62,0.00024637,2]
[367202183,1750698701999,-217.46761639,0.00024637,2]
[367202184,1750698702008,-490.0,0.00024637,2]
[367202185,1750698702018,-490.0,0.00024637,2]
[367202186,1750698702027,-1231.23,0.00024637,2]
[367202187,1750698702036,-640.93,0.00024637,2]
[367202188,1750698702046,-736.66,0.00024637,2]
[367202189,1750698702055,-1000.0,0.00024637,2]
[367202190,1750698702064,-1091.48,0.00024637,2]
[367202191,1750698702073,-415.16876666,0.00024637,2]
[367202192,1750698702083,-1296.4,0.00024637,2]
[367202193,1750698702096,-490.0,0.00024637,2]
[367202194,1750698702107,-687.53,0.00024637,2]
[367202195,1750698702116,-577.42,0.00024637,2]
[367202196,1750698702125,-994.99,0.00024637,2]
[367202197,1750698702136,-1465.11,0.00024637,2]
[367202198,1750698702145,-490.0,0.00024637,2]
[367202199,1750698702154,-659.98,0.00024637,2]
[367202200,1750698702163,-1163.27,0.00024637,2]
[367202201,1750698702172,-490.0,0.00024637,2]
[367202202,1750698702182,-1296.64,0.00024637,2]
[367202203,1750698702191,-805.19,0.00024637,2]
[367202204,1750698702201,-490.0,0.00024637,2]
[367202205,1750698702210,-798.6,0.00024637,2]
[367202206,1750698702220,-961.74,0.00024637,2]
[367202207,1750698702229,-490.0,0.00024637,2]
[367202208,1750698702238,-490.0,0.00024637,2]
[367202209,1750698702248,-586.53,0.00024637,2]
[367202210,1750698702257,-711.71,0.00024637,2]
[367202211,1750698702266,-490.0,0.00024637,2]
[367202212,1750698702275,-490.0,0.00024637,2]
[367202213,1750698702284,-1316.01,0.00024637,2]
[367202214,1750698702293,-2071.77,0.00024637,2]
[367202215,1750698702303,-707.92,0.00024637,2]
[367202216,1750698702312,-490.0,0.00024637,2]
[367202217,1750698702323,-988.12,0.00024637,2]
[367202218,1750698702332,-1316.04,0.00024637,2]
[367202219,1750698702341,-490.0,0.00024637,2]
[367202220,1750698702350,-490.0,0.00024637,2]
[367202221,1750698702360,-1649.14,0.00024637,2]
[367202222,1750698702370,-490.0,0.00024637,2]
[367202223,1750698702379,-490.0,0.00024637,2]
[367202224,1750698702388,-1451.84,0.00024637,2]
[367202225,1750698702398,-2574.3,0.00024637,2]
[367202226,1750698702407,-677.43,0.00024637,2]
[367202227,1750698702416,-761.66,0.00024637,2]
[367202228,1750698702426,-671.45,0.00024637,2]
[367202229,1750698702435,-1201.92,0.00024637,2]
[367202230,1750698702445,-490.0,0.00024637,2]
[367202231,1750698702454,-1302.67,0.00024637,2]
[367202232,1750698702463,-490.0,0.00024637,2]
[367202233,1750698702472,-490.0,0.00024637,2]
[367202234,1750698702482,-1463.6,0.00024637,2]
[367202235,1750698702491,-1384.87,0.00024637,2]
[367202236,1750698702500,-1565.89,0.00024637,2]
[367202237,1750698702509,-740.56,0.00024637,2]
[367202238,1750698702518,-581.5,0.00024637,2]
[367202239,1750698702528,-1274.36,0.00024637,2]
[367202240,1750698702538,-1136.75,0.00024637,2]
[367202241,1750698702547,-3207.81,0.00024637,2]
[367202242,1750698702557,-490.0,0.00024637,2]
[367202243,1750698702567,-508.28,0.00024637,2]
[367202244,1750698702576,-490.0,0.00024637,2]
[367202245,1750698702586,-645.34,0.00024637,2]
[367202246,1750698702596,-570.24,0.00024637,2]
[367202247,1750698702605,-1082.91,0.00024637,2]
[367202248,1750698702615,-3216.41,0.00024637,2]
[367202249,1750698702626,-1198.83,0.00024637,2]
[367202250,1750698702636,-3260.51,0.00024637,2]
[367202251,1750698702646,-777.62,0.00024637,2]
[367202252,1750698702655,-1064.93,0.00024637,2]
[367202253,1750698702665,-2313.09,0.00024637,2]
[367202254,1750698702674,-642.42,0.00024637,2]
[367202255,1750698702684,-690.62,0.00024637,2]
[367202256,1750698702694,-490.0,0.00024637,2]
[367202257,1750698702704,-490.0,0.00024637,2]
[367202258,1750698702713,-1610.22,0.00024637,2]
[367202259,1750698702723,-3410.48,0.00024637,2]
[367202260,1750698702733,-490.0,0.00024637,2]
[367202261,1750698702743,-1189.88,0.00024637,2]
[367202262,1750698702756,-503.76,0.00024637,2]
[367202263,1750698702767,-1272.73,0.00024637,2]
[367202264,1750698702777,-1305.05,0.00024637,2]
[367202265,1750698702787,-1292.27,0.00024637,2]
[367202266,1750698702797,-490.0,0.00024637,2]
[367202267,1750698702807,-5009.26,0.00024637,2]
[367202268,1750698702818,-802.99,0.00024637,2]